Cogmind - Beta 16.1 @@@ ROGUE MODE // 2026.04.20 @ 17:04:56 Player: Maelyn Result: Destroyed by as-31211 with Assembled Heavy Rifle Performance ------------- Evolutions (0) 0 Regions Visited (4) 800 Robots Destroyed (0) 0 Value Destroyed (0) 0 Prototype IDs (0) 0 Alien Tech Used (0) 0 Bonus (14) 14 TOTAL SCORE: 814 Bonus ------- Follower Combat Kills 14 Cogmind --------- Core Integrity 0/250 Matter 29/300 Energy 140/140 System Corruption 0% Temperature Hot (201) Movement Treading (165) Location -9/Mines Parts ------- > --- POWER (1) -------- Light Deuterium Engine > --- PROPULSION (2) --- Light Treads Armored Treads > --- UTILITY (2) ------ Large Storage Unit > --- WEAPON (2) ------- Medium Laser Improved Grenade Launcher > --- INVENTORY (15) --- Flying Fortress v7 Small Storage Unit Actuator Array Reaction Control System Assault Rifle Rocket Launcher Peak State ------------ > --- POWER ------------ Light Deuterium Engine > --- PROPULSION ------- Light Treads Armored Treads > --- UTILITY ---------- Large Storage Unit > --- WEAPON ----------- Medium Laser Improved Grenade Launcher > --- INVENTORY -------- Flying Fortress v7 Small Storage Unit Actuator Array Reaction Control System Assault Rifle Rocket Launcher [Rating: 16] Favorites ----------- Power Ion Engine Engine Ion Engine Propulsion Light Treads Treads Light Treads Utility Small Storage Unit Storage Small Storage Unit Weapon Medium Laser Energy Gun Medium Laser Ballistic Gun Assault Rifle Launcher Grenade Launcher Build | -11 -10 -10 -10 -9 ------- Run | Yrd Mat Min Exi Min Slots Evolved . | . . . . . Power . | . . . . . Propulsion . | . . . . . Utility . | . . . . . Weapon . | . . . . . Parts Attached 12 | 7 . 1 3 1 Power 3 | 2 . . 1 . Engine 3 | 2 . . 1 . Core . | . . . . . Reactor . | . . . . . Propulsion 3 | 2 . . 1 . Treads 3 | 2 . . 1 . Leg . | . . . . . Wheel . | . . . . . Hover . | . . . . . Flight . | . . . . . Utility 2 | 1 . . 1 . Device . | . . . . . Storage 2 | 1 . . 1 . Processor . | . . . . . Hackware . | . . . . . Protection . | . . . . . Artifact . | . . . . . Weapon 4 | 2 . 1 . 1 Energy Gun 1 | 1 . . . . Energy Cannon . | . . . . . Ballistic Gun 1 | 1 . . . . Ballistic Cannon . | . . . . . Launcher 2 | . . 1 . 1 Special Weapon . | . . . . . Impact Weapon . | . . . . . Slashing Weapon . | . . . . . Piercing Weapon . | . . . . . Special Melee Weapon . | . . . . . Unidentified Prototypes . | . . . . . Parts Lost 1 | . . . . 1 Power . | . . . . . Propulsion . | . . . . . Utility . | . . . . . Weapon 1 | . . . . 1 Highest Loss Streak 1 | . . . . 1 To Critical Strikes . | . . . . . Average Backups 6 | 2 4 6 6 6 Power . | . 1 1 . . Propulsion 1 | 1 2 1 1 1 Utility 1 | . . 1 2 3 Weapon 2 | 1 1 2 2 2 Tool/Special . | . . . . . Unused Backups 7 | . . 2 1 4 Power . | . . . . . Propulsion 3 | . . 2 . 1 Utility 2 | . . . . 2 Weapon 2 | . . . 1 1 Tool/Special . | . . . . . Average Slot Usage (%) 85 | . 85 85 85 85 Engine 14 | . 14 14 14 14 Treads 28 | . 28 28 28 28 Storage 14 | . 14 14 14 14 Energy Gun 14 | . 14 14 14 14 Ballistic Gun 1 | . 14 1 . . Launcher 12 | . . 12 14 14 Peak Build Rating 16 | 6 6 7 15 16 Average Rating 9 | 4 6 6 10 14 On Entrance 6 | . 6 6 7 14 Avg Prop Armor Cover (%) . | . . . . . Naked Turns . | . . . . . Heaviest Build 30 | 14 14 15 30 30 Greatest Support 40 | 40 40 40 40 40 Greatest Overweight (x) . | . . . . . Average Overweight (x) . | . . . . . Largest Inventory Capacity 15 | 8 8 8 15 15 Average Capacity 9 | 7 8 8 9 15 Most Carried 10 | 6 5 8 9 10 Average Carried 7 | 3 4 6 7 9 Final Capacity 15 | 8 8 8 15 15 Final Carried 9 | 4 5 7 9 9 Class Distribution -------------------- 100% | Mutant Dominant Class ---------------- Mutant | -10/Materials Mutant | -10/Mines Mutant | -10/Exiles Mutant | -9/Mines Resources | -11 -10 -10 -10 -9 ----------- Run | Yrd Mat Min Exi Min Matter Collected 170 | 102 . 18 . 50 Remotely . | . . . . . Salvage Created 16 | . . . . 16 Parts . | . . . . . Haulers Intercepted . | . . . . . Recyclers Shooed . | . . . . . Parts Field Recycled . | . . . . . Retrieved Matter . | . . . . . Parts Self-Destructed . | . . . . . Prevented . | . . . . . Parts Restored . | . . . . . Kills | -11 -10 -10 -10 -9 ------- Run | Yrd Mat Min Exi Min Combat Hostiles Destroyed 9 | . . . . 9 AOE 9 | . . . . 9 Classes Destroyed 1 | . . . . 1 Assembled 9 | . . . . 9 Best Kill Streak 9 | . . . . 9 Combat Bots Only 9 | . . . . 9 Max Kills in Single Turn 2 | . . . . 2 Gunslinging . | . . . . . Exploded 2 | . . . . 2 Melee . | . . . . . Uniques/NPCs Destroyed . | . . . . . Combat | -11 -10 -10 -10 -9 -------- Run | Yrd Mat Min Exi Min Hostile Shots Fired 47 | . . 7 . 40 Missed 13 | . . 1 . 12 Hits 34 | . . 6 . 28 Melee 5 | . . . . 5 Projectile 29 | . . 6 . 23 Critical Strikes 1 | . . . . 1 Damage Taken 702 | . . 86 . 616 Core 251 | . . 33 . 218 Absorbed by Shields . | . . . . . Core Remaining (%) 100 | 100 . . . . Volleys Fired 14 | . . 3 . 11 Largest 2 | . . 2 . 2 Hottest 86 | . . 80 . 86 Shots Fired 26 | . . 6 . 20 Gun 14 | . . 3 . 11 Cannon . | . . . . . Launcher 12 | . . 3 . 9 Special . | . . . . . Kinetic . | . . . . . Thermal 14 | . . 3 . 11 Explosive 12 | . . 3 . 9 Electromagnetic . | . . . . . Robot Hit Streak 4 | . . . . 4 Robot Miss Streak 3 | . . . . 3 Penetration Max . | . . . . . Secondary Targets . | . . . . . Shots Hit Robots 10 | . . . . 10 Core Hits 18 | . . . . 18 Critical Kills . | . . . . . Critical Parts Destroyed . | . . . . . Critical Strikes . | . . . . . Melee Attacks . | . . . . . Impact . | . . . . . Slashing . | . . . . . Piercing . | . . . . . Sneak Attacks . | . . . . . Combat Hostiles . | . . . . . Follow-up Attacks . | . . . . . Damage Inflicted 762 | . . . . 762 Guns 49 | . . . . 49 Cannons . | . . . . . Explosions 713 | . . . . 713 Melee . | . . . . . Ramming . | . . . . . Kinetic . | . . . . . Thermal 49 | . . . . 49 Explosive 713 | . . . . 713 Electromagnetic . | . . . . . Impact . | . . . . . Slashing . | . . . . . Piercing . | . . . . . Highest Corruption . | . . . . . Average Corruption . | . . . . . Corruption Purged . | . . . . . Corruption Blocked . | . . . . . Overload Shots . | . . . . . Overflow Damage 15 | . . . . 15 Projectiles . | . . . . . Explosions 15 | . . . . 15 Melee . | . . . . . Knockbacks . | . . . . . Impact . | . . . . . Kinetic . | . . . . . Secondary . | . . . . . Self-Inflicted Damage 202 | . . 40 . 162 Shots 9 | . . 3 . 6 Rammed . | . . . . . Targets Rammed . | . . . . . Kicked . | . . . . . Crushed . | . . . . . Highest Temperature 201 | . . 36 . 201 Average Temperature 83 | . . 18 . 103 Received Heat Transfer 40 | . . . . 40 Siege Activations . | . . . . . Martial Activations . | . . . . . Shielding Activations . | . . . . . Robots Disrupted . | . . . . . Combat Hostiles . | . . . . . Robots Corrupted . | . . . . . Combat Hostiles . | . . . . . Parts Fried . | . . . . . Impact Corruptions . | . . . . . Robots Melted . | . . . . . Combat Hostiles . | . . . . . Parts Melted . | . . . . . Heat Transferred 148 | . . . . 148 Parts Sabotaged . | . . . . . Parts Stolen . | . . . . . Parts Stripped . | . . . . . Power Chain Reactions . | . . . . . Alert | -11 -10 -10 -10 -9 ------- Run | Yrd Mat Min Exi Min Maximum Alert Level . | . . . . . Low Security (%) 100 | 100 100 100 . 100 Level 1 . | . . . . . Level 2 . | . . . . . Level 3 . | . . . . . Level 4 . | . . . . . Level 5 . | . . . . . High Security . | . . . . . Max Security . | . . . . . Peak Influence 43 | . . 43 . 22 Initial . | . . . . . Average 4 | . . 7 . 2 Influence Increases 102 | . . 64 . 38 Destroy 0b10 Robot/C 40 | . . 40 . . Destroy Leader 10 | . . 10 . . Allied During Kill 3 | . . 3 . . Destroy Structure 49 | . . 11 . 38 Influence Decreases 84 | . . 61 3 20 Entered New Map 3 | . . . 3 . Time Decay 71 | . . 61 . 10 Lost Part 10 | . . . . 10 Squads Dispatched 2 | . . 2 . . Investigation 1 | . . 1 . . Extermination . | . . . . . Reinforcement . | . . . . . Assault 1 | . . 1 . . Garrison . | . . . . . Intercept . | . . . . . Searches Triggered . | . . . . . Construction Impeded . | . . . . . Haulers Reinforced . | . . . . . Active Scanning Responses . | . . . . . Cargo Convoy Interrupts . | . . . . . Stealth | -11 -10 -10 -10 -9 --------- Run | Yrd Mat Min Exi Min Distress Signals . | . . . . . Communications Jammed . | . . . . . Distress Signals . | . . . . . Times Spotted 17 | . 1 3 . 13 Peak Tracking Total 11 | . 1 3 . 11 Tactical Retreats . | . . . . . Traps | -11 -10 -10 -10 -9 ------- Run | Yrd Mat Min Exi Min Traps Triggered . | . . . . . Indirectly . | . . . . . Trap Hack Attempts . | . . . . . Triggered . | . . . . . Disarmed . | . . . . . Reprogrammed . | . . . . . Reused . | . . . . . Traps Extracted . | . . . . . Installed . | . . . . . Triggered . | . . . . . Machines | -11 -10 -10 -10 -9 ---------- Run | Yrd Mat Min Exi Min Machines Disabled 2 | . . 2 . . Max in Single Turn 2 | . . 2 . . Machines Repaired . | . . . . . Machines Dismantled . | . . . . . Machines Sabotaged . | . . . . . Overloaded Fab Kills . | . . . . . Hacking | -11 -10 -10 -10 -9 --------- Run | Yrd Mat Min Exi Min Machines Accessed 2 | . 1 1 . . Terminals 1 | . 1 . . . Fabricators . | . . . . . Repair Stations . | . . . . . Recycling Units . | . . . . . Scanalyzers . | . . . . . Garrison Access . | . . . . . Total Hacks 4 | . 3 1 . . Successful 1 | . . 1 . . Failed 3 | . 3 . . . Catastrophic 1 | . 1 . . . Database Lockouts . | . . . . . Manual 4 | . 3 . 1 . Terminals 3 | . 3 . . . Fabricators . | . . . . . Repair Stations . | . . . . . Recycling Units . | . . . . . Scanalyzers . | . . . . . Garrison Access . | . . . . . Terminal Hacks 1 | . . 1 . . Open Door 1 | . . 1 . . Fabricator Hacks . | . . . . . Repair Station Hacks . | . . . . . Recycling Unit Hacks . | . . . . . Scanalyzer . | . . . . . Garrison Access Hacks . | . . . . . Unauthorized Hacks . | . . . . . Terminals . | . . . . . Fabricators . | . . . . . Repair Stations . | . . . . . Recycling Units . | . . . . . Scanalyzers . | . . . . . Garrison Access . | . . . . . Data Cores Recovered . | . . . . . Used . | . . . . . Hacking Detections 1 | . 1 . . . Full Trace Events 1 | . 1 . . . Feedback Events . | . . . . . Feedback Blocked . | . . . . . Robot Schematics Acquired . | . . . . . Robots Built . | . . . . . Authchips . | . . . . . Time . | . . . . . Total Robot Build Rating . | . . . . . Part Schematics Acquired . | . . . . . Parts Built . | . . . . . Authchips . | . . . . . Time . | . . . . . Total Part Build Rating . | . . . . . Part Studies Acquired . | . . . . . Parts Repaired . | . . . . . Time . | . . . . . Parts Recycled . | . . . . . Recycled Matter . | . . . . . Retrieved Matter . | . . . . . Retrieved Components . | . . . . . Parts Scanalyzed . | . . . . . Part Schematics Acquired . | . . . . . Parts Damaged . | . . . . . Bothacking | -11 -10 -10 -10 -9 ------------ Run | Yrd Mat Min Exi Min Used RIF Installer . | . . . . . Robots Hacked . | . . . . . Non-combat . | . . . . . Combat . | . . . . . Robot Hacks Applied . | . . . . . Relay Couplers Released . | . . . . . Fabnet Peak Effective % . | . . . . . Robots Rewired . | . . . . . Allies Hacked . | . . . . . Hacks Repelled . | . . . . . Allies | -11 -10 -10 -10 -9 -------- Run | Yrd Mat Min Exi Min Total Allies 1 | . . 1 . . Largest Group 1 | . . 1 1 1 Highest-Rated Group 31 | . . 31 31 31 Highest-Rated Ally 31 | . . 31 31 31 Total Orders . | . . . . . Ally Attacks 8 | . . 7 . 1 Total Damage 42 | . . 42 . . Kills 2 | . . 2 . . Allies Corrupted . | . . . . . Allies Melted . | . . . . . Intel | -11 -10 -10 -10 -9 ------- Run | Yrd Mat Min Exi Min Active Infowar (turns) . | . . . . . Robot Analysis Total . | . . . . . Derelict Logs Recovered 2 | . . 2 . . Drone Launches . | . . . . . Drone Recoveries . | . . . . . Exploration | -11 -10 -10 -10 -9 ------------- Run | Yrd Mat Min Exi Min Turns Passed 1063 | 78 99 328 380 178 Spaces Moved 613 | 41 62 195 227 88 Core 2 | 2 . . . . Treads 611 | 39 62 195 227 88 Legs . | . . . . . Wheels . | . . . . . Hover . | . . . . . Flight . | . . . . . Fastest Speed 50 | 50 160 160 160 165 Average Speed 161 | 154 160 160 162 165 Slowest Speed 165 | 160 160 160 165 165 Overloaded Moves . | . . . . . Propulsion Burnouts . | . . . . . Robots Hopped . | . . . . . Potential Cave-ins . | . . . . . Cave-ins Triggered . | . . . . . Exploration Rate (%) 36 | 3 21 61 62 34 Regions Visited 4 Branch Regions 3 Pre-discovered Areas . | . . . . . Known Exits Taken . | . . . . . Unknown Exits Taken 4 | 1 1 1 1 . Scrap Searched 1 | . . . . 1 Spaces Dug 11 | . . 11 . . Terrain Destroyed 94 | . . 17 . 77 Melee . | . . . . . Projectile . | . . . . . AOE 94 | . . 17 . 77 Terrain Rammed . | . . . . . Walls Destroyed . | . . . . . Machines Disabled . | . . . . . Actions | -11 -10 -10 -10 -9 --------- Run | Yrd Mat Min Exi Min Total 660 | 53 62 206 238 101 Wait . | . . . . . Move 609 | 40 61 194 226 88 Hop . | . . . . . Pick Up 14 | 6 1 5 1 1 Fast Attach 5 | 4 . . 1 . Attach 3 | 2 . . . 1 Detach 1 | . . . 1 . Swap 4 | 1 . 1 2 . Drop 6 | . . 3 3 . Fire 14 | . . 3 . 11 Melee . | . . . . . Ram . | . . . . . Kick . | . . . . . Crush . | . . . . . Escape Stasis . | . . . . . Rewire 4 | . . . 4 . Trap . | . . . . . Miscellaneous . | . . . . . Route ------- -11/Scrapyard -10/Materials -10/Mines (discovered 3 exits: [*Mat] / *Exi / [*Sub]) -10/Exiles -9/Mines History --------- Turn | Location | Event 22 | -11/Scrapyard | Discovered new exit (range 15) 79 | -11/Scrapyard | Entered Materials 151 | -10/Materials | Discovered new exit (range 16) 178 | -10/Materials | Entered Mines 186 | -10/Mines | Met a Derelict shopkeep closing up shop 301 | -10/Mines | Build established: Mutant 322 | -10/Mines | Learned Materials interactive machine intel 336 | -10/Mines | Discovered new exit (range 7) 337 | -10/Mines | Met a Derelict testing a Signal Generator 343 | -10/Mines | Discovered new exit (range 13) 480 | -10/Mines | Learned location of 2 exits from Materials 499 | -10/Mines | Deemed a non-threat by the Exiles lab entrance 499 | -10/Mines | Discovered new exit (range 5) 506 | -10/Mines | Entered Exiles 506 | -10/Exiles | Found Exiles lab destroyed 506 | -10/Exiles | Accompanied by 1 ally 679 | -10/Exiles | Opened EX-Vault 691 | -10/Exiles | Found Prototype Flight Unit 872 | -10/Exiles | Discovered new exit (range 10) 886 | -10/Exiles | Entered Mines 886 | -9/Mines | Accompanied by 1 ally 893 | -9/Mines | Received a Rocket Launcher from a helpful Derelict 1024 | -9/Mines | Assembled infested the area 1057 | -9/Mines | Core integrity fell below 50% 1063 | -9/Mines | Core integrity fell below 20% 1064 | -9/Mines | Destroyed by as-31211 with Assembled Heavy Rifle Last Messages --------------- 01026_ Found 50 Matter. 01027_ Acquired 50 matter. 01029_ HT-QDA(g) destroyed. 01035_ Destroyed Asb. Hover Unit. 01038_ as-69549 destroyed. 01041_ Destroyed Asb. F-torch. 01046_ as-09473 destroyed. 01046_ as-42129 destroyed. 01048_ The unstable cave ceiling collapses. 01049_ as-88386 destroyed. 01052_ as-65323 destroyed. 01052_ as-14317 destroyed. 01055_ The unstable cave ceiling collapses. 01055_ as-29500 destroyed. 01055_ as-74478 destroyed. 01056_ Grenade Launcher destroyed. 01059_ The unstable cave ceiling collapses. 01062_ as-49070 destroyed. 01062_ Destroyed Asb. Hover Unit. 01064_ as-37318 destroyed. Map ----- +----------------------------------------------------+ | ???????????????????????????? | | ???????????????????????????? | | ???????????????????????????? | | ???????????????????????????? | | ???????????????????????????? | | ???????????????????????????? | | ???????????????????????????? | | ???????????????????????????? | | ???? ?????????????????????? | | ???# ?????????????????????? | | ???# ?????????????????????? | | ???# #????????????????????? | | ??## a###??????????????????? | | ?# # ##?????????????????? | | ?# ##????????????????? | | ?# #????????????????? | | ?# #????????????????? | | ?# a #????????????????? | | ?# # ?????????????????? | | ## #?????????????????? | | # #??????????????#### | | # #??????????????# | | # #???#####??????# "" | | #??## ##?????# "" | | a% #??# #?????# "" | | # @% #??# #?????# | | # ####??# ######? | | # #?## #??# | | ### ##### ### #### #### | | ??###???# ##??# | | ????# ##???###### | | ???# """ ##?????????# | | ???# """ ##??????????# | | ???# """ ##???????????## | | ???# ###?????????????? | | ???# ######???????????????? | | ???# ?????????????????????? | | ???#???????????????????????? | | ???????????????????????????? | | ???????????????????????????? | | ???????????????????????????? | | ????????? ####?????????????? | | ???????? #????????????? | | ????????? #???????????? | | ?????????? ##?????????? | | ???????????? ######??## | | ??????????????# #### | | ???????????????# ## | | ????????????????# | | ?????????????????## | +----------------------------------------------------+ Best States ------------- Heat Dissipation 25 Energy Generation 14 Energy Capacity 250 Matter Stores 132 Matter Capacity 300 Sight Range 16 Terrain Scan Density 10 Evasion (%) 40 Recoil Reduction 2 Item Schematics ----------------- None Robot Schematics ------------------ None Fabricated ------------ Nothing Repaired ---------- Nothing Studied --------- None Alien Tech Used ----------------- None Achievements -------------- None Challenges ------------ None Game ------ Seed AdvancedFluxFalx Manual? 0 Play Time 00:07:37 Cumulative 68.6 hours Start 2026.04.20 @ 16:58:27 End 2026.04.20 @ 17:04:56 Sessions 1 Manual Loads 0 Difficulty Rogue Special Mode None Game No. 135 Rogue 135 Adventurer 0 Explorer 0 Win Type - Total 0 Types 0/0/0/0/0/0/0/0/0/0 Lore% 15 Gallery% 33 Achievement% 23 Wizard Run 0 Options --------- Layout 0 ASCII 0 Keyboard 1 Movement Vi Keybinds 0 Fullscreen 2 Font 18/T_Terminus Map View 76x50 Zoom Use 0% Tactical HUD 1 Map Filters SHIFT_HUE(5) Filters LOW_CONTRAST(10,2,20)|SHIFT_HUE(5) Steam 1 RUN: 3e7dc708-6ddf-46f0-8318-eeb5bd10703a